[Event "Asian Continental-ch Women 2019"]
[Site "XingTai"]
[Date "2019.06.12"]
[Round "6.18"]
[White "Li, Xueyi"]
[Black "Kulkarni Bhakti"]
[Result "1/2-1/2"]
[ECO "E04"]
[WhiteElo "2305"]
[BlackElo "2380"]
[Annotator "NA"]
[PlyCount "70"]
[EventDate "2019.06.06"]
[EventType "swiss"]
[EventCountry "CHN"]
[SourceTitle "playchess.com"]
[Source "ChessBase"]
[SourceQuality "1"]
[TimeControl "40/5400+30:1800+30"]

1. d4 {[%emt 0:00:00]} d5 {[%emt 0:00:04]} 2. c4 {[%emt 0:00:03]} e6 {[%emt 0:00:44]} 3. Nf3 {[%emt 0:01:12]} Nf6 {[%emt 0:00:50]} 4. g3 {[%emt 0:00:22]} dxc4 {[%emt 0:00:44]} 5. Bg2 {[%emt 0:01:19]} Bd7 {[%emt 0:00:23]} 6. Ne5 {[%emt 0:03:28]} Bc6 {[%emt 0:03:03]} 7. Nxc6 {[%emt 0:00:48]} Nxc6 {[%emt 0:00:08]} 8. O-O {[%emt 0:01:12]} Qd7 {[%emt 0:00:16]} 9. e3 {[%emt 0:00:20]} O-O-O {[%emt 0:00:27]} 10. Nd2 {[%emt 0:03:28]} e5 {[%emt 0:01:53]} 11. Nxc4 {[%emt 0:08:26]} Qe6 {[%emt 0:10:31]} 12. Qa4 {[%emt 0:07:14]} exd4 {[%emt 0:12:23]} 13. Bxc6 {[%emt 0:00:38]} Qxc6 {[%emt 0:13:41]} 14. Qxc6 {[%emt 0:01:32]} bxc6 {[%emt 0:00:02]} 15. exd4 {[%emt 0:21:02]} Rxd4 {[%emt 0:03:11]} 16. b3 {[%emt 0:01:08]} Bc5 {[%emt 0:04:54]} 17. Be3 {[%emt 0:06:55]} Rd5 {[%emt 0:07:31]} 18. Bxc5 {[%emt 0:00:14]} Rxc5 {[%emt 0:00:09]} 19. Rac1 {[%emt 0:00:16]} Re8 {[%emt 0:02:20]} 20. b4 {[%emt 0:00:54]} Rb5 {[%emt 0:00:51]} 21. a3 {[%emt 0:03:00]} c5 {[%emt 0:02:40]} 22. Rc2 {[%emt 0:03:22]} Re6 {[%emt 0:04:10]} 23. Na5 {[%emt 0:04:50]} cxb4 {[%emt 0:01:54]} 24. axb4 {[%emt 0:01:26]} Rxb4 {[%emt 0:02:25]} 25. Rfc1 {[%emt 0:00:59]} Ne8 {[%emt 0:06:15]} 26. Nc6 {[%emt 0:00:33]} Rb6 {[%emt 0:00:34]} 27. Rc5 {[%emt 0:02:38]} a6 {[%emt 0:01:12]} 28. f4 {[%emt 0:04:27]} Re2 {[%emt 0:03:42]} 29. Rd5 {[%emt 0:00:47]} Kb7 {[%emt 0:04:05]} 30. Na5+ {[%emt 0:00:08]} Ka8 {[%emt 0:00:38]} 31. Rd8+ {[%emt 0:01:31]} Rb8 {[%emt 0:00:37]} 32. Rd7 {[%emt 0:01:02]} Rbb2 {[%emt 0:05:27]} 33. Rd8+ {[%emt 0:00:10]} Rb8 {[%emt 0:00:04]} 34. Rd7 {[%emt 0:00:04]} Rbb2 {[%emt 0:05:32]} 35. Rd8+ {[%emt 0:00:07]} Rb8 {[%emt 0:04:10]} 1/2-1/2

[Event "Asian Continental-ch Women 2019"]
[Site "XingTai"]
[Date "2019.06.12"]
[Round "6.19"]
[White "Vo, Thi Kim Phung"]
[Black "Saduakassova, Dinara"]
[Result "0-1"]
[ECO "D85"]
[WhiteElo "2337"]
[BlackElo "2458"]
[Annotator "ChessBase"]
[PlyCount "124"]
[EventDate "2019.06.06"]
[EventType "swiss"]
[EventCountry "CHN"]
[SourceTitle "playchess.com"]
[Source "ChessBase"]
[SourceQuality "1"]
[TimeControl "40/5400+30:1800+30"]

1. d4 {[%emt 0:00:00]} Nf6 {[%emt 0:00:00]} 2. c4 {[%emt 0:00:00]} g6 {[%emt 0:00:00]} 3. Nc3 {[%emt 0:00:09]} d5 {[%emt 0:00:00]} 4. cxd5 {[%emt 0:00:50]} Nxd5 {[%emt 0:00:00]} 5. Qa4+ {[%emt 0:01:07]} Nc6 {[%emt 0:02:50]} 6. Nf3 {[%emt 0:01:38]} Bg7 {[%emt 0:02:44]} 7. e3 {[%emt 0:03:12]} O-O {[%emt 0:02:47]} 8. Nxd5 {[%emt 0:03:06]} Qxd5 {[%emt 0:00:20]} 9. Qb5 {[%emt 0:00:24]} Qd6 {[%emt 0:05:01]} 10. Be2 {[%emt 0:05:05]} e5 {[%emt 0:01:17]} 11. dxe5 {[%emt 0:03:02]} Nxe5 {[%emt 0:00:11]} 12. O-O {[%emt 0:02:13]} c6 {[%emt 0:04:09]} 13. Qb3 {[%emt 0:00:24]} Bg4 {[%emt 0:03:12]} 14. e4 {[%emt 0:07:32]} Qe6 {[%emt 0:11:30]} 15. Qxe6 {[%emt 0:09:43]} Nxf3+ {[%emt 0:03:37]} 16. Bxf3 {[%emt 0:03:58]} Bxe6 {[%emt 0:00:04]} 17. a4 {[%emt 0:00:38]} Rfd8 {[%emt 0:02:40]} 18. a5 {[%emt 0:03:05]} Bc4 {[%emt 0:05:07]} 19. Re1 {[%emt 0:01:10]} Bb5 {[%emt 0:02:03]} 20. e5 {[%emt 0:02:02]} Rd4 {[%emt 0:06:27]} 21. g3 {[%emt 0:08:27]} Rb4 {[%emt 0:03:09]} 22. Ra3 {[%emt 0:13:39]} Re8 {[%emt 0:03:23]} 23. Bd2 {[%emt 0:02:35]} Rxb2 {[%emt 0:02:48]} 24. Bc3 {[%emt 0:00:21]} Rc2 {[%emt 0:00:09]} 25. Be4 {[%emt 0:02:22]} Re2 {[%emt 0:02:45]} 26. Rxe2 {[%emt 0:00:16]} Bxe2 {[%emt 0:00:04]} 27. a6 {[%emt 0:01:40]} Bf8 {[%emt 0:07:48]} 28. Rb3 {[%emt 0:12:18]} Bxa6 {[%emt 0:00:12]} 29. Bd4 {[%emt 0:01:01]} f6 {[%emt 0:02:18]} 30. Rb1 {[%emt 0:02:41]} Kf7 {[%emt 0:06:19]} 31. g4 {[%emt 0:03:27]} fxe5 {[%emt 0:03:45]} 32. Bxa7 {[%emt 0:00:06]} Rd8 {[%emt 0:00:11]} 33. Kg2 {[%emt 0:04:25]} Rd7 {[%emt 0:00:50]} 34. Be3 {[%emt 0:00:27]} Bc4 {[%emt 0:03:09]} 35. f4 {[%emt 0:02:23]} exf4 {[%emt 0:02:02]} 36. Bxf4 {[%emt 0:00:02]} Ke6 {[%emt 0:00:59]} 37. Kf2 {[%emt 0:02:03]} Rf7 {[%emt 0:01:41]} 38. Kg3 {[%emt 0:00:29]} Bd6 {[%emt 0:00:16]} 39. Bxd6 {[%emt 0:00:12]} Kxd6 {[%emt 0:00:04]} 40. Kh4 {[%emt 0:00:00]} Ke5 {[%emt 0:00:00]} 41. Bg2 {[%emt 0:01:07]} h6 {[%emt 0:03:08]} 42. Re1+ {[%emt 0:00:28]} Kd6 {[%emt 0:00:08]} 43. Be4 {[%emt 0:01:16]} Rf6 {[%emt 0:00:27]} 44. g5 {[%emt 0:04:00]} Rf4+ {[%emt 0:00:25]} 45. Kg3 {[%emt 0:00:07]} hxg5 {[%emt 0:00:03]} 46. Bxg6 {[%emt 0:00:13]} b5 {[%emt 0:00:10]} 47. Rb1 {[%emt 0:02:56]} c5 {[%emt 0:00:56]} 48. Rd1+ {[%emt 0:02:18]} Rd4 {[%emt 0:00:16]} 49. Rg1 {[%emt 0:01:10]} b4 {[%emt 0:00:19]} 50. Kf3 {[%emt 0:00:13]} g4+ {[%emt 0:03:00]} 51. Ke3 {[%emt 0:00:09]} Be6 {[%emt 0:00:18]} 52. Ra1 {[%emt 0:00:39]} Rc4 {[%emt 0:00:51]} 53. Rd1+ {[%emt 0:03:07]} Ke5 {[%emt 0:00:07]} 54. Rf1 {[%emt 0:02:11]} Rc3+ {[%emt 0:00:09]} 55. Kd2 {[%emt 0:00:10]} Rh3 {[%emt 0:00:55]} 56. Rf2 {[%emt 0:00:20]} c4 {[%emt 0:00:29]} 57. Kc1 {[%emt 0:00:17]} c3 {[%emt 0:01:16]} 58. Re2+ {[%emt 0:02:05]} Kd6 {[%emt 0:00:07]} 59. Be4 {[%emt 0:04:16]} b3 {[%emt 0:00:24]} 60. Kb1 {[%emt 0:00:26]} Bc4 {[%emt 0:00:14]} 61. Re1 {[%emt 0:01:10]} Rxh2 {[%emt 0:00:12]} 62. Rc1 {[%emt 0:00:57]} Rb2+ {[%emt 0:00:14]} 0-1

[Event "Asian Continental-ch Women 2019"]
[Site "XingTai"]
[Date "2019.06.12"]
[Round "6.20"]
[White "Sukandar, Irine Kharisma"]
[Black "Dauletova, Gulmira"]
[Result "1-0"]
[ECO "B48"]
[WhiteElo "2378"]
[BlackElo "2252"]
[Annotator "NA"]
[PlyCount "75"]
[EventDate "2019.06.06"]
[EventType "swiss"]
[EventCountry "CHN"]
[SourceTitle "playchess.com"]
[Source "ChessBase"]
[SourceQuality "1"]
[TimeControl "40/5400+30:1800+30"]

1. e4 {[%emt 0:00:00]} c5 {[%emt 0:00:00]} 2. Nf3 {[%emt 0:00:01]} e6 {[%emt 0:00:07]} 3. d4 {[%emt 0:00:19]} cxd4 {[%emt 0:00:10]} 4. Nxd4 {[%emt 0:00:06]} Nc6 {[%emt 0:00:08]} 5. Nc3 {[%emt 0:00:31]} Qc7 {[%emt 0:00:24]} 6. Be3 {[%emt 0:00:24]} a6 {[%emt 0:00:27]} 7. Qf3 {[%emt 0:00:51]} Nf6 {[%emt 0:00:47]} 8. O-O-O {[%emt 0:00:43]} Ne5 {[%emt 0:00:30]} 9. Qg3 {[%emt 0:00:11]} b5 {[%emt 0:00:28]} 10. a3 {[%emt 0:00:33]} Bb7 {[%emt 0:00:34]} 11. Bxb5 {[%emt 0:00:35]} Rc8 {[%emt 0:00:38]} 12. Ba4 {[%emt 0:00:24]} Nxe4 {[%emt 0:00:30]} 13. Nxe4 {[%emt 0:00:30]} Bxe4 {[%emt 0:00:10]} 14. Bf4 {[%emt 0:00:21]} Qc4 {[%emt 0:02:39]} 15. Bxe5 {[%emt 0:00:41]} Qxa4 {[%emt 0:00:17]} 16. Rd2 {[%emt 0:00:20]} h5 {[%emt 0:01:47]} 17. Re1 {[%emt 0:01:40]} Bg6 {[%emt 0:12:34]} 18. Bd6 {[%emt 0:01:18]} Qc4 {[%emt 0:01:03]} 19. Bxf8 {[%emt 0:02:18]} Kxf8 {[%emt 0:00:46]} 20. Re3 {[%emt 0:00:34]} Qc7 {[%emt 0:31:54]} 21. Qg5 {[%emt 0:10:12]} Rh6 {[%emt 0:11:26]} 22. Rc3 {[%emt 0:11:16]} Qb8 {[%emt 0:04:45]} 23. Rxc8+ {[%emt 0:24:30]} Qxc8 {[%emt 0:00:23]} 24. Nc6 {[%emt 0:01:08]} d5 {[%emt 0:08:14]} 25. Qe7+ {[%emt 0:04:30]} Kg8 {[%emt 0:00:02]} 26. Qd6 {[%emt 0:00:28]} Kh7 {[%emt 0:00:27]} 27. Ne7 {[%emt 0:01:34]} Qa8 {[%emt 0:04:14]} 28. Rd4 {[%emt 0:02:03]} a5 {[%emt 0:04:03]} 29. h4 {[%emt 0:02:39]} Qe8 {[%emt 0:04:15]} 30. f3 {[%emt 0:03:48]} Kh8 {[%emt 0:06:20]} 31. c4 {[%emt 0:07:45]} Bh7 {[%emt 0:00:56]} 32. Qc7 {[%emt 0:00:27]} Bg8 {[%emt 0:02:58]} 33. c5 {[%emt 0:02:25]} f6 {[%emt 0:00:53]} 34. c6 {[%emt 0:01:05]} e5 {[%emt 0:00:01]} 35. Qd7 {[%emt 0:00:28]} Qa8 {[%emt 0:01:50]} 36. c7 {[%emt 0:00:54]} Qa6 {[%emt 0:00:34]} 37. c8=Q {[%emt 0:00:32]} Qf1+ {[%emt 0:00:24]} 38. Rd1 {[%emt 0:00:06]} 1-0

[Event "Asian Continental-ch Women 2019"]
[Site "XingTai"]
[Date "2019.06.12"]
[Round "6.21"]
[White "Gu, Tianlu"]
[Black "Munguntuul, Batkhuyag"]
[Result "0-1"]
[ECO "B47"]
[WhiteElo "2183"]
[BlackElo "2420"]
[Annotator "NA"]
[PlyCount "68"]
[EventDate "2019.06.06"]
[EventType "swiss"]
[EventCountry "CHN"]
[SourceTitle "playchess.com"]
[Source "ChessBase"]
[SourceQuality "1"]
[TimeControl "40/5400+30:1800+30"]

1. e4 {[%emt 0:00:00]} c5 {[%emt 0:00:00]} 2. Nf3 {[%emt 0:00:00]} e6 {[%emt 0:00:00]} 3. g3 {[%emt 0:00:16]} Nc6 {[%emt 0:00:00]} 4. Bg2 {[%emt 0:00:16]} Nf6 {[%emt 0:00:00]} 5. Nc3 {[%emt 0:00:09]} a6 {[%emt 0:00:00]} 6. O-O {[%emt 0:00:56]} Qc7 {[%emt 0:00:06]} 7. d4 {[%emt 0:01:06]} cxd4 {[%emt 0:00:13]} 8. Nxd4 {[%emt 0:00:06]} h5 {[%emt 0:02:28]} 9. Nxc6 {[%emt 0:05:38]} dxc6 {[%emt 0:01:43]} 10. Bg5 {[%emt 0:11:16]} e5 {[%emt 0:02:07]} 11. Bxf6 {[%emt 0:01:15]} gxf6 {[%emt 0:00:08]} 12. h4 {[%emt 0:05:23]} Bc5 {[%emt 0:07:39]} 13. Qf3 {[%emt 0:06:36]} Qe7 {[%emt 0:04:32]} 14. Nd1 {[%emt 0:01:39]} Bg4 {[%emt 0:01:04]} 15. Qb3 {[%emt 0:02:53]} O-O-O {[%emt 0:12:11]} 16. Ne3 {[%emt 0:06:01]} Rd2 {[%emt 0:04:04]} 17. Nxg4 {[%emt 0:10:36]} hxg4 {[%emt 0:00:46]} 18. a3 {[%emt 0:00:08]} Rhd8 {[%emt 0:02:31]} 19. Qc3 {[%emt 0:00:24]} Ba7 {[%emt 0:00:56]} 20. b4 {[%emt 0:00:54]} Re2 {[%emt 0:07:57]} 21. Rad1 {[%emt 0:05:36]} Bxf2+ {[%emt 0:01:43]} 22. Kh1 {[%emt 0:01:52]} Kb8 {[%emt 0:10:55]} 23. Rd3 {[%emt 0:02:45]} Rd4 {[%emt 0:05:08]} 24. Rb1 {[%emt 0:10:48]} Qe6 {[%emt 0:04:15]} 25. Rxd4 {[%emt 0:02:25]} exd4 {[%emt 0:07:55]} 26. Qd3 {[%emt 0:05:05]} Re3 {[%emt 0:00:54]} 27. Qd2 {[%emt 0:00:05]} Bxg3 {[%emt 0:01:07]} 28. Qxd4 {[%emt 0:00:05]} Rxa3 {[%emt 0:00:31]} 29. Qd8+ {[%emt 0:00:22]} Ka7 {[%emt 0:00:15]} 30. Qd4+ {[%emt 0:00:06]} Ka8 {[%emt 0:00:14]} 31. h5 {[%emt 0:00:46]} Be5 {[%emt 0:02:00]} 32. Qc5 {[%emt 0:01:47]} Rc3 {[%emt 0:01:07]} 33. Qf8+ {[%emt 0:00:33]} Bb8 {[%emt 0:00:14]} 34. h6 {[%emt 0:02:22]} Qe5 {[%emt 0:00:04]} 0-1

[Event "Asian Continental-ch Women 2019"]
[Site "XingTai"]
[Date "2019.06.12"]
[Round "6.22"]
[White "Mahalakshmi, M."]
[Black "Munkhzul, Turmunkh"]
[Result "0-1"]
[ECO "D37"]
[WhiteElo "2245"]
[BlackElo "2371"]
[Annotator "NA"]
[PlyCount "76"]
[EventDate "2019.06.06"]
[EventType "swiss"]
[EventCountry "CHN"]
[SourceTitle "playchess.com"]
[Source "ChessBase"]
[SourceQuality "1"]
[TimeControl "40/5400+30:1800+30"]

1. d4 {[%emt 0:00:00]} Nf6 {[%emt 0:00:19]} 2. c4 {[%emt 0:00:00]} e6 {[%emt 0:00:17]} 3. Nc3 {[%emt 0:00:40]} d5 {[%emt 0:00:25]} 4. Nf3 {[%emt 0:00:31]} Be7 {[%emt 0:00:33]} 5. Bf4 {[%emt 0:00:11]} O-O {[%emt 0:01:00]} 6. e3 {[%emt 0:00:09]} b6 {[%emt 0:00:42]} 7. cxd5 {[%emt 0:11:44]} Nxd5 {[%emt 0:00:37]} 8. Nxd5 {[%emt 0:04:03]} exd5 {[%emt 0:00:36]} 9. Bd3 {[%emt 0:03:06]} c5 {[%emt 0:01:53]} 10. O-O {[%emt 0:00:44]} Nc6 {[%emt 0:05:09]} 11. dxc5 {[%emt 0:03:20]} bxc5 {[%emt 0:00:51]} 12. Ne5 {[%emt 0:03:26]} Nxe5 {[%emt 0:04:43]} 13. Bxe5 {[%emt 0:00:15]} Be6 {[%emt 0:01:02]} 14. Rc1 {[%emt 0:03:21]} Qb6 {[%emt 0:10:38]} 15. Qe2 {[%emt 0:04:44]} Rac8 {[%emt 0:08:24]} 16. h3 {[%emt 0:06:48]} Rfd8 {[%emt 0:10:39]} 17. Rfd1 {[%emt 0:07:02]} Bd6 {[%emt 0:03:39]} 18. Bxd6 {[%emt 0:04:05]} Rxd6 {[%emt 0:01:16]} 19. b3 {[%emt 0:01:12]} g6 {[%emt 0:05:06]} 20. e4 {[%emt 0:04:10]} dxe4 {[%emt 0:09:35]} 21. Qxe4 {[%emt 0:03:15]} Qa5 {[%emt 0:04:19]} 22. Qe2 {[%emt 0:05:40]} Rcd8 {[%emt 0:01:57]} 23. Kh2 {[%emt 0:05:49]} Qb4 {[%emt 0:02:46]} 24. Qc2 {[%emt 0:12:19]} Rxd3 {[%emt 0:01:18]} 25. Rxd3 {[%emt 0:02:02]} Rxd3 {[%emt 0:00:19]} 26. Qxd3 {[%emt 0:00:46]} Qf4+ {[%emt 0:00:07]} 27. Qg3 {[%emt 0:01:18]} Qxc1 {[%emt 0:00:00]} 28. Qb8+ {[%emt 0:00:15]} Kg7 {[%emt 0:00:00]} 29. Qe5+ {[%emt 0:00:50]} Kf8 {[%emt 0:01:10]} 30. Qd6+ {[%emt 0:03:14]} Ke8 {[%emt 0:00:28]} 31. Qb8+ {[%emt 0:01:16]} Ke7 {[%emt 0:00:11]} 32. Qxa7+ {[%emt 0:00:05]} Kf6 {[%emt 0:00:09]} 33. Qc7 {[%emt 0:00:32]} Qc2 {[%emt 0:01:29]} 34. Qf4+ {[%emt 0:00:57]} Qf5 {[%emt 0:00:15]} 35. Qd2 {[%emt 0:00:19]} Qe5+ {[%emt 0:01:34]} 36. Kg1 {[%emt 0:00:58]} Qa1+ {[%emt 0:00:11]} 37. Kh2 {[%emt 0:00:06]} Qd4 {[%emt 0:00:05]} 38. Qc2 {[%emt 0:02:02]} Bf5 {[%emt 0:02:43]} 0-1

[Event "Asian Continental-ch Women 2019"]
[Site "XingTai"]
[Date "2019.06.12"]
[Round "6.23"]
[White "Zhai, Mo"]
[Black "Vaishali R"]
[Result "1-0"]
[ECO "A57"]
[WhiteElo "2358"]
[BlackElo "2338"]
[Annotator "NA"]
[PlyCount "141"]
[EventDate "2019.06.06"]
[EventType "swiss"]
[EventCountry "CHN"]
[SourceTitle "playchess.com"]
[Source "ChessBase"]
[SourceQuality "1"]
[TimeControl "40/5400+30:1800+30"]

1. d4 {[%emt 0:00:00]} Nf6 {[%emt 0:00:06]} 2. c4 {[%emt 0:00:00]} c5 {[%emt 0:00:05]} 3. d5 {[%emt 0:01:53]} b5 {[%emt 0:00:06]} 4. cxb5 {[%emt 0:04:11]} a6 {[%emt 0:00:05]} 5. e3 {[%emt 0:00:56]} axb5 {[%emt 0:00:07]} 6. Bxb5 {[%emt 0:00:28]} Qa5+ {[%emt 0:00:17]} 7. Nc3 {[%emt 0:00:05]} Bb7 {[%emt 0:00:05]} 8. e4 {[%emt 0:07:48]} Nxe4 {[%emt 0:01:13]} 9. Nge2 {[%emt 0:00:12]} e6 {[%emt 0:11:00]} 10. O-O {[%emt 0:13:23]} Be7 {[%emt 0:02:37]} 11. a4 {[%emt 0:08:01]} Nxc3 {[%emt 0:01:43]} 12. Nxc3 {[%emt 0:00:12]} O-O {[%emt 0:00:37]} 13. Re1 {[%emt 0:05:27]} Qc7 {[%emt 0:17:05]} 14. Qg4 {[%emt 0:04:13]} Bf6 {[%emt 0:28:06]} 15. Bf4 {[%emt 0:01:40]} Qb6 {[%emt 0:03:08]} 16. Qg3 {[%emt 0:12:06]} exd5 {[%emt 0:08:46]} 17. Bc7 {[%emt 0:06:24]} Qa7 {[%emt 0:00:14]} 18. a5 {[%emt 0:03:45]} Na6 {[%emt 0:02:19]} 19. Bd6 {[%emt 0:01:05]} Rfe8 {[%emt 0:06:43]} 20. Bxd7 {[%emt 0:04:26]} Rxe1+ {[%emt 0:00:57]} 21. Rxe1 {[%emt 0:00:02]} Nb4 {[%emt 0:00:24]} 22. Qe3 {[%emt 0:08:30]} h6 {[%emt 0:02:24]} 23. Bf5 {[%emt 0:00:42]} Bc6 {[%emt 0:04:26]} 24. Qxc5 {[%emt 0:03:26]} Qxc5 {[%emt 0:02:27]} 25. Bxc5 {[%emt 0:00:01]} Na6 {[%emt 0:00:52]} 26. Bb6 {[%emt 0:01:12]} d4 {[%emt 0:01:12]} 27. Ne4 {[%emt 0:01:44]} Bd8 {[%emt 0:03:41]} 28. Bxd4 {[%emt 0:01:17]} Bxa5 {[%emt 0:00:08]} 29. Rc1 {[%emt 0:01:36]} Bb7 {[%emt 0:00:56]} 30. Nd6 {[%emt 0:00:58]} Bd5 {[%emt 0:00:44]} 31. Rc8+ {[%emt 0:03:46]} Rxc8 {[%emt 0:00:06]} 32. Bxc8 {[%emt 0:00:04]} Nc7 {[%emt 0:01:39]} 33. Nf5 {[%emt 0:02:03]} Be6 {[%emt 0:00:59]} 34. Ne7+ {[%emt 0:01:47]} Kf8 {[%emt 0:00:23]} 35. Bc5 {[%emt 0:00:25]} Ke8 {[%emt 0:00:54]} 36. Bb7 {[%emt 0:00:21]} Bd2 {[%emt 0:00:33]} 37. h4 {[%emt 0:02:55]} Bf4 {[%emt 0:00:48]} 38. b4 {[%emt 0:00:34]} Be5 {[%emt 0:00:18]} 39. Nc6 {[%emt 0:00:32]} Bf6 {[%emt 0:00:20]} 40. g3 {[%emt 0:00:00]} Bd5 {[%emt 0:00:00]} 41. Na5 {[%emt 0:06:51]} Bxb7 {[%emt 0:08:01]} 42. Nxb7 {[%emt 0:00:02]} Kd7 {[%emt 0:00:07]} 43. Nd6 {[%emt 0:03:46]} Be7 {[%emt 0:01:04]} 44. Ne4 {[%emt 0:03:09]} Bxc5 {[%emt 0:00:39]} 45. Nxc5+ {[%emt 0:01:06]} Kc6 {[%emt 0:00:15]} 46. Kg2 {[%emt 0:02:42]} Kb5 {[%emt 0:00:41]} 47. Nd3 {[%emt 0:00:13]} Nd5 {[%emt 0:04:58]} 48. Kf3 {[%emt 0:04:32]} Nxb4 {[%emt 0:00:53]} 49. Ne5 {[%emt 0:03:27]} f6 {[%emt 0:00:24]} 50. Ng4 {[%emt 0:00:11]} Kc5 {[%emt 0:12:31]} 51. Ke4 {[%emt 0:00:11]} Kd6 {[%emt 0:00:23]} 52. Kf5 {[%emt 0:00:09]} Ke7 {[%emt 0:01:45]} 53. Kg6 {[%emt 0:00:09]} Kf8 {[%emt 0:00:01]} 54. Ne3 {[%emt 0:01:14]} Nd3 {[%emt 0:02:37]} 55. Nf5 {[%emt 0:00:47]} Nxf2 {[%emt 0:03:00]} 56. Nxg7 {[%emt 0:00:02]} Ne4 {[%emt 0:00:15]} 57. Nf5 {[%emt 0:00:44]} h5 {[%emt 0:00:35]} 58. Kxh5 {[%emt 0:00:22]} Kf7 {[%emt 0:00:07]} 59. Kh6 {[%emt 0:01:02]} Nf2 {[%emt 0:00:43]} 60. Kh7 {[%emt 0:01:19]} Ne4 {[%emt 0:01:02]} 61. Nh6+ {[%emt 0:03:05]} Ke6 {[%emt 0:01:11]} 62. g4 {[%emt 0:00:07]} Nd2 {[%emt 0:00:39]} 63. Kg7 {[%emt 0:00:56]} Nf3 {[%emt 0:00:19]} 64. Nf5 {[%emt 0:01:25]} Ke5 {[%emt 0:00:38]} 65. h5 {[%emt 0:01:10]} Ng5 {[%emt 0:00:29]} 66. h6 {[%emt 0:00:30]} Kf4 {[%emt 0:00:35]} 67. Nd6 {[%emt 0:00:11]} Kxg4 {[%emt 0:00:24]} 68. Nf7 {[%emt 0:01:27]} Ne6+ {[%emt 0:00:22]} 69. Kxf6 {[%emt 0:00:53]} Nf8 {[%emt 0:00:11]} 70. Kg7 {[%emt 0:00:09]} Ne6+ {[%emt 0:00:06]} 71. Kg8 {[%emt 0:00:05]} 1-0

[Event "Asian Continental-ch Women 2019"]
[Site "XingTai"]
[Date "2019.06.12"]
[Round "6.25"]
[White "Karavade, Eesha"]
[Black "Wang, Doudou"]
[Result "1-0"]
[ECO "A35"]
[WhiteElo "2370"]
[BlackElo "2188"]
[Annotator "NA"]
[PlyCount "81"]
[EventDate "2019.06.06"]
[EventType "swiss"]
[EventCountry "CHN"]
[SourceTitle "playchess.com"]
[Source "ChessBase"]
[SourceQuality "1"]
[TimeControl "40/5400+30:1800+30"]

1. Nf3 {[%emt 0:00:00]} c5 {[%emt 0:01:10]} 2. c4 {[%emt 0:00:20]} Nc6 {[%emt 0:00:33]} 3. Nc3 {[%emt 0:00:07]} g6 {[%emt 0:04:32]} 4. e3 {[%emt 0:00:16]} Bg7 {[%emt 0:00:19]} 5. d4 {[%emt 0:00:06]} cxd4 {[%emt 0:00:05]} 6. exd4 {[%emt 0:00:45]} d6 {[%emt 0:03:55]} 7. h3 {[%emt 0:02:18]} Nf6 {[%emt 0:01:38]} 8. d5 {[%emt 0:00:38]} Ne5 {[%emt 0:14:30]} 9. Nxe5 {[%emt 0:05:41]} dxe5 {[%emt 0:00:06]} 10. Be3 {[%emt 0:00:02]} O-O {[%emt 0:03:41]} 11. Be2 {[%emt 0:03:29]} Ne8 {[%emt 0:07:59]} 12. O-O {[%emt 0:03:32]} Nd6 {[%emt 0:01:36]} 13. Bd3 {[%emt 0:05:57]} Nf5 {[%emt 0:08:23]} 14. Bxf5 {[%emt 0:00:52]} gxf5 {[%emt 0:00:06]} 15. f3 {[%emt 0:00:26]} Kh8 {[%emt 0:08:34]} 16. Qd2 {[%emt 0:01:34]} f4 {[%emt 0:04:37]} 17. Bf2 {[%emt 0:02:43]} Rg8 {[%emt 0:01:11]} 18. Kh2 {[%emt 0:00:33]} Qd6 {[%emt 0:12:04]} 19. Bh4 {[%emt 0:07:38]} Bf8 {[%emt 0:07:28]} 20. Qf2 {[%emt 0:02:17]} a6 {[%emt 0:02:25]} 21. c5 {[%emt 0:01:08]} Qg6 {[%emt 0:01:00]} 22. Rad1 {[%emt 0:01:07]} Bd7 {[%emt 0:00:13]} 23. d6 {[%emt 0:09:29]} exd6 {[%emt 0:02:36]} 24. cxd6 {[%emt 0:04:01]} Rc8 {[%emt 0:00:20]} 25. Ne4 {[%emt 0:05:01]} Qf5 {[%emt 0:05:29]} 26. Rc1 {[%emt 0:03:31]} Rxc1 {[%emt 0:03:54]} 27. Rxc1 {[%emt 0:00:02]} Rg6 {[%emt 0:00:09]} 28. Rd1 {[%emt 0:01:23]} Kg7 {[%emt 0:01:39]} 29. Be7 {[%emt 0:04:54]} Bc6 {[%emt 0:03:07]} 30. Bxf8+ {[%emt 0:00:41]} Kxf8 {[%emt 0:00:01]} 31. Nc5 {[%emt 0:01:56]} Bd7 {[%emt 0:01:32]} 32. Nxd7+ {[%emt 0:03:37]} Qxd7 {[%emt 0:00:02]} 33. Qc5 {[%emt 0:00:08]} Re6 {[%emt 0:00:31]} 34. Qc7 {[%emt 0:01:32]} Ke8 {[%emt 0:00:02]} 35. Qb8+ {[%emt 0:00:26]} Qd8 {[%emt 0:00:03]} 36. d7+ {[%emt 0:00:10]} Ke7 {[%emt 0:00:01]} 37. Qxb7 {[%emt 0:00:12]} h6 {[%emt 0:02:13]} 38. Qe4 {[%emt 0:01:11]} Kf6 {[%emt 0:00:30]} 39. Rd5 {[%emt 0:00:29]} Kg7 {[%emt 0:00:33]} 40. Qf5 {[%emt 0:00:00]} Qh4 {[%emt 0:00:00]} 41. Qg4+ {[%emt 0:02:06]} 1-0

[Event "Asian Continental-ch Women 2019"]
[Site "XingTai"]
[Date "2019.06.13"]
[Round "7.18"]
[White "Kulkarni Bhakti"]
[Black "Sukandar, Irine Kharisma"]
[Result "0-1"]
[ECO "B22"]
[WhiteElo "2380"]
[BlackElo "2378"]
[Annotator "NA RC"]
[PlyCount "80"]
[EventDate "2019.06.06"]
[EventType "swiss"]
[EventCountry "CHN"]
[SourceTitle "playchess.com"]
[Source "ChessBase"]
[SourceQuality "1"]
[TimeControl "40/5400+30:1800+30"]

1. e4 {[%emt 0:00:00]} c5 {[%emt 0:00:17]} 2. c3 {[%emt 0:00:00]} Nf6 {[%emt 0:00:47]} 3. e5 {[%emt 0:00:22]} Nd5 {[%emt 0:00:16]} 4. Nf3 {[%emt 0:00:51]} e6 {[%emt 0:00:39]} 5. d4 {[%emt 0:00:31]} cxd4 {[%emt 0:00:15]} 6. cxd4 {[%emt 0:00:32]} d6 {[%emt 0:00:23]} 7. Bc4 {[%emt 0:01:55]} Nc6 {[%emt 0:00:39]} 8. a3 {[%emt 0:01:36]} Be7 {[%emt 0:00:35]} 9. O-O {[%emt 0:00:20]} O-O {[%emt 0:01:02]} 10. Qe2 {[%emt 0:01:04]} b6 {[%emt 0:04:27]} 11. b4 {[%emt 0:06:09]} Bb7 {[%emt 0:03:32]} 12. Ra2 {[%emt 0:06:15]} Rc8 {[%emt 0:03:54]} 13. Rc2 {[%emt 0:03:34]} a5 {[%emt 0:03:46]} 14. Bxd5 $11 {[%emt 0:16:43]} exd5 {[%emt 0:00:07]} 15. b5 {[%emt 0:01:56]} Na7 {[%emt 0:04:18]} 16. Nc3 {[%emt 0:02:03]} dxe5 {[%emt 0:02:35]} 17. Nxe5 {[%emt 0:01:09]} Bd6 {[%emt 0:01:21]} 18. Ng4 {[%emt 0:16:17]} Re8 {[%emt 0:09:04]} 19. Qd3 {[%emt 0:01:52]} Qh4 {[%emt 0:13:12]} 20. h3 {[%emt 0:00:49]} Bb8 {[%emt 0:07:17]} 21. Qf5 {[%emt 0:07:25]} Qd8 {[%emt 0:06:04]} 22. Ne3 {[%emt 0:13:47]} Qd6 {[%emt 0:01:31]} 23. g3 {[%emt 0:00:22]} Rcd8 {[%emt 0:03:35]} 24. a4 {[%emt 0:01:52]} Bc8 {[%emt 0:02:59]} 25. Qh5 {[%emt 0:00:36]} Be6 {[%emt 0:04:10]} 26. Bd2 {[%emt 0:04:00]} Qd7 {[%emt 0:03:33]} 27. Kh2 {[%emt 0:02:00]} Nc8 {[%emt 0:01:16]} 28. f4 {[%emt 0:01:13]} g6 {[%emt 0:01:57]} 29. Qf3 {[%emt 0:00:46]} Ne7 {[%emt 0:00:32]} 30. g4 {[%emt 0:01:20]} f5 {[%emt 0:02:35]} 31. g5 {[%emt 0:01:03]} Rc8 {[%emt 0:01:26]} 32. Rfc1 {[%emt 0:01:05]} Qd6 {[%emt 0:03:47]} 33. Ncxd5 {[%emt 0:05:23]} Nxd5 {[%emt 0:03:52]} 34. Rxc8 {[%emt 0:00:11]} Bxc8 {[%emt 0:04:09]} 35. Nxd5 {[%emt 0:01:31]} Bb7 {[%emt 0:00:30]} 36. Rc6 {[%emt 0:00:13]} Bxc6 {[%emt 0:00:33]} 37. bxc6 {[%emt 0:00:05]} Kf7 {[%emt 0:01:07]} 38. Nf6 {[%emt 0:01:29]} Qxd4 {[%emt 0:01:03]} 39. Bc1 {[%emt 0:00:35]} Re6 {[%emt 0:02:28]} 40. Nd7 {[%emt 0:00:00]} Bc7 {[%emt 0:00:00]} 0-1